bitfinex/quotes_ETHUSD_20240924
["timestamp","ask_amount","ask_price","bid_price","bid_amount"]
[1727174628441,0.8254,2655.1,2654.7,7.53362]
[1727174628642,0.8254,2655.1,2654.7,3.76679]
[1727174629259,0.8254,2655.1,2654.7,7.53362]
[1727174631875,0.8254,2655.1,2654.8,3.76674]
[1727174633482,1.57862462,2655.3,2654.9,3.7666]
[1727174633708,0.7872,2655.3,2654.9,3.7666]
[1727174634013,0.7872,2655.3,2654.9,3.76654]
[1727174634384,0.7872,2655.2,2654.9,3.76654]
[1727174635573,0.7872,2655.2,2654.9,7.53306]
[1727174636007,0.7872,2655.2,2654.9,3.76652]
[1727174638106,0.7872,2655.2,2654.7,3.84213277]
[1727174638310,0.7872,2655.2,2654.8,3.76674]
[1727174638704,0.7872,2655.2,2654.9,3.7666]
[1727174641208,0.7872,2655.2,2654.9,3.76652]
[1727174641724,0.7872,2655.2,2654.9,7.53307]
[1727174642712,1.57862462,2655.2,2654.9,7.53307]
[1727174642879,0.7872,2655.2,2655.0,3.76645]
[1727174643079,0.7872,2655.2,2655.0,3.76639]
[1727174647486,0.7872,2655.2,2655.0,3.76647]
[1727174647814,0.7872,2655.2,2655.0,3.76645]
[1727174649090,0.79142462,2655.3,2655.0,3.76645]
[1727174649604,0.79142462,2655.3,2655.1,3.76627]
[1727174650088,0.79142462,2655.3,2655.0,3.7664]
[1727174651420,0.79142462,2655.2,2655.0,3.7664]
[1727174654590,0.79142462,2655.1,2655.0,3.7664]
[1727174655522,1.18715258,2655.2,2655.0,3.7664]
[1727174655887,1.18715258,2655.2,2655.1,3.76633]
[1727174656518,1.58319994,2655.2,2655.1,3.76633]
[1727174657020,1.18587488,2655.2,2655.1,3.76633]
[1727174657427,0.79060219,2655.2,2655.1,3.76633]
[1727174657630,1.18587488,2655.2,2655.1,3.76633]
[1727174660004,1.58319994,2655.3,2655.1,3.76633]
[1727174660321,1.18674756,2655.2,2655.1,3.76633]
[1727174662101,1.58319994,2655.3,2655.1,3.76633]
[1727174662315,1.58319994,2655.3,2655.2,3.76619]
[1727174663737,1.58319994,2655.3,2655.0,3.76645]
[1727174664029,2.39534031,2655.2,2655.0,3.76639]
[1727174664212,1.58294031,2655.1,2655.0,3.76639]
[1727174664596,2.39534031,2655.2,2655.0,3.76639]
[1727174665530,1.58294031,2655.1,2655.0,3.76639]
[1727174666031,2.39534031,2655.2,2655.0,3.76639]
[1727174666590,1.58294031,2655.1,2655.0,3.76639]
[1727174669529,1.58294031,2655.1,2655.0,6.4166091]
[1727174669530,0.7915391,2655.1,2655.0,6.4166091]
[1727174669734,1.18730865,2655.3,2655.1,3.76633]
[1727174669735,0.7915391,2655.2,2655.1,3.76633]
[1727174669921,1.18730865,2655.3,2655.2,4.53109]
[1727174669922,0.7915391,2655.3,2655.2,4.53109]
[1727174670119,0.7915391,2655.3,2655.2,6.41631866]
[1727174670444,1.18730865,2655.5,2655.4,3.76591]
[1727174670742,1.58294031,2655.7,2655.5,4.56706]
[1727174670950,1.58294031,2655.7,2655.6,5.20228568]
[1727174671242,0.79114998,2655.7,2655.6,5.20228568]
[1727174671543,1.18672568,2655.9,2655.7,3.76548]
[1727174671544,0.79114998,2655.8,2655.7,3.76548]
[1727174673303,0.79114998,2655.9,2655.8,3.76534]
[1727174675211,0.82914998,2656.0,2655.9,3.7652]
[1727174675656,0.82914998,2656.0,2655.9,3.84049586]
[1727174676147,0.038,2656.0,2655.9,4.64179586]
[1727174676449,0.038,2656.0,2655.9,17.22770486]
[1727174676662,0.038,2656.0,2655.9,17.152409]
[1727174677154,0.038,2656.0,2655.9,11.363328]
[1727174677455,0.038,2656.0,2655.9,4.5665]
[1727174677662,0.038,2656.0,2655.9,7.39276734]
[1727174678607,0.038,2656.0,2655.9,4.64178534]
[1727174679011,0.038,2656.0,2655.9,7.14443334]
[1727174679910,0.038,2656.0,2655.9,4.64178534]
[1727174680113,0.038,2656.0,2655.9,7.14443334]
[1727174684255,0.038,2656.0,2655.9,10.14443334]
[1727174684554,0.038,2656.0,2655.9,10.069148]
[1727174687755,0.038,2656.0,2655.9,7.5665]
[1727174687932,0.038,2656.0,2655.9,7.64178675]
[1727174688451,0.038,2656.0,2655.9,16.75597775]
[1727174688659,0.038,2656.0,2655.9,16.680691]
[1727174689022,0.038,2656.0,2655.9,15.789931]
[1727174690857,0.038,2656.0,2655.9,12.744075]
[1727174691259,0.038,2656.0,2655.9,7.5665]
[1727174691567,0.038,2656.0,2655.9,16.14637146]
[1727174691719,0.038,2656.0,2655.9,16.071085]
[1727174693746,0.038,2656.0,2655.9,15.551765]
[1727174693967,0.038,2656.0,2655.9,14.525039]
[1727174694181,0.038,2656.0,2655.9,13.941838]
[1727174699083,0.038,2656.0,2655.9,11.23638]
[1727174700377,0.038,2656.0,2655.9,10.025603]
[1727174704889,0.038,2656.0,2655.9,11.46226868]
[1727174705177,0.038,2656.0,2655.9,12.01226868]
[1727174705385,0.8115,2656.9,2655.9,12.01226868]
[1727174705386,0.8115,2656.9,2656.8,3.76392]
[1727174705546,0.8115,2656.9,2656.8,5.20058568]
[1727174705742,0.8115,2656.9,2656.8,3.76392]
[1727174710302,0.8115,2657.2,2657.1,3.7635]
[1727174712310,0.8115,2657.2,2657.0,7.52717]
[1727174712906,0.21939201,2657.2,2657.0,7.52717]
[1727174713240,0.21939201,2657.2,2657.0,3.76355]
[1727174715077,0.21939201,2657.2,2656.9,3.76378]
[1727174715292,1.01054199,2657.2,2656.9,3.76378]
[1727174715468,0.79114998,2657.0,2656.7,3.76395]
[1727174715872,1.18672568,2657.1,2656.7,3.76395]
[1727174715873,1.56064998,2656.9,2656.7,3.76395]
[1727174716571,0.7695,2656.9,2656.7,3.76395]
[1727174716817,1.56064998,2656.9,2656.6,3.7642]
[1727174717023,0.79114998,2656.8,2656.6,3.7642]
[1727174718373,0.79114998,2656.7,2656.5,7.52849]
[1727174718573,0.79114998,2656.7,2656.5,3.76423]
[1727174718778,0.7695,2656.6,2656.3,3.76453]
[1727174719007,1.56064998,2656.6,2656.3,3.76453]
[1727174719225,0.79114998,2656.5,2656.3,3.76453]
[1727174720085,1.56064998,2656.6,2656.3,3.76453]
[1727174720410,1.56064998,2656.6,2656.1,5.20149568]
[1727174720411,0.79114998,2656.4,2656.2,3.76477]
[1727174720582,0.79114998,2656.4,2656.3,3.76463]
[1727174720792,0.75314998,2656.4,2656.3,3.76463]
[1727174721481,1.95622568,2656.6,2656.3,3.76463]
[1727174721685,1.95622568,2656.6,2656.3,5.20129568]
[1727174721886,1.95622568,2656.6,2656.5,3.76435]
[1727174722387,1.95622568,2656.6,2656.4,3.76446]
[1727174722714,0.7695,2656.6,2656.4,3.76446]
[1727174722914,1.95622568,2656.6,2656.4,3.76446]
[1727174723117,0.7695,2656.6,2656.4,3.76446]
[1727174723322,1.95622568,2656.6,2656.4,3.76446]
[1727174723517,1.95622568,2656.6,2656.4,3.76449]
[1727174723703,1.95622568,2656.6,2656.3,5.20129568]
[1727174723904,1.95622568,2656.6,2656.5,3.76435]
[1727174724079,1.95622568,2656.6,2656.4,3.76447]
[1727174726826,0.7695,2656.6,2656.4,3.76447]
[1727174728731,3.76366,2657.0,2656.4,3.76447]
[1727174728931,1.145866,2656.9,2656.4,3.76447]
[1727174729137,4.909656,2656.9,2656.4,3.76447]
[1727174730612,4.909656,2656.9,2656.4,7.52888]
[1727174733239,4.909656,2656.9,2656.4,3.76441]
[1727174733710,4.909656,2656.9,2656.4,3.7644]
[1727174734740,4.909656,2656.9,2656.5,3.76434]
[1727174735739,4.909656,2656.9,2656.4,3.76447]
[1727174736034,4.909656,2656.9,2656.0,3.76499]
[1727174736035,3.76442,2656.5,2656.0,3.76499]
[1727174736338,4.55676,2656.3,2655.8,3.0]
[1727174736499,0.7921,2656.0,2655.7,3.76548]
[1727174738042,0.7921,2656.0,2655.5,3.76568]
[1727174738346,0.7921,2656.0,2655.3,2.25056568]
[1727174738500,0.7921,2656.0,2655.6,3.76561]
[1727174739332,0.7921,2656.0,2655.6,3.76555]
[1727174741743,3.06097768,2656.0,2655.3,4.57986]
[1727174741925,3.76538,2655.8,2655.4,3.0]
[1727174742101,3.76563,2655.6,2655.1,3.76624]
[1727174742302,0.7921,2655.7,2655.3,3.76603]
[1727174742603,0.7921,2655.7,2655.5,3.76575]
[1727174743308,0.7921,2655.7,2655.5,3.76569]
[1727174746348,0.7921,2655.7,2655.4,3.76587]
[1727174746551,0.7921,2655.7,2655.3,3.76594]
[1727174746854,0.7921,2655.7,2655.3,7.53191]
[1727174747351,0.7921,2655.7,2655.3,3.76594]
[1727174747738,4.55759,2655.7,2655.0,7.53285]
[1727174747927,4.53712,2655.6,2655.1,6.76631]
[1727174748123,3.76577,2655.5,2655.1,6.76631]
[1727174748350,0.7714,2655.4,2655.1,3.0]
[1727174748660,0.7714,2655.4,2654.8,5.20332568]
[1727174748661,0.7714,2655.4,2655.0,3.76641]
[1727174749026,0.7714,2655.4,2655.0,7.53282]
[1727174750918,0.7714,2655.4,2655.0,3.7664]
[1727174752653,0.7714,2655.4,2655.1,3.76629]
[1727174756165,0.7714,2655.4,2655.0,3.76646]
[1727174758268,0.7714,2655.4,2655.0,3.76641]
[1727174758568,0.7714,2655.4,2655.0,7.5328]
[1727174759364,0.7714,2655.4,2655.0,3.76639]
[1727174762634,0.7714,2655.4,2655.1,3.7663]
[1727174765175,0.7714,2655.4,2655.0,3.76639]
[1727174765586,0.7714,2655.4,2655.0,7.53279]
[1727174765873,0.7714,2655.4,2655.0,3.76639]
[1727174766074,3.76598,2655.4,2655.0,3.76639]
[1727174766287,0.8238,2655.3,2655.0,3.76639]
[1727174767401,3.76563,2655.6,2655.2,3.76612]
[1727174767402,0.8238,2655.6,2655.2,3.76612]
[1727174767694,0.8238,2655.6,2655.1,3.76633]
[1727174767695,0.8238,2655.6,2655.3,3.76592]
[1727174767848,0.8238,2655.6,2655.1,1.51198877]
[1727174767849,0.8238,2655.6,2655.1,1.51198259]
[1727174768056,0.8238,2655.6,2655.4,3.76589]
[1727174768447,0.8238,2655.6,2655.5,3.76576]
[1727174768969,0.8238,2655.8,2655.5,3.76576]
[1727174769154,0.8238,2655.8,2655.3,3.76604]
[1727174769466,0.8238,2655.8,2655.3,7.53195]
[1727174769795,0.8238,2655.8,2655.3,3.76591]
[1727174770783,4.58914,2655.8,2655.3,3.76591]
[1727174771882,4.58914,2655.8,2655.3,7.53189]
[1727174772057,0.8238,2655.8,2655.4,3.76585]
[1727174772396,0.8238,2656.1,2655.6,3.7656]
[1727174773166,4.58878,2656.1,2655.6,3.7656]
[1727174773493,0.8238,2655.9,2655.5,3.76575]
[1727174773854,0.8238,2655.9,2655.2,0.7791]
[1727174773855,5.20210568,2655.8,2655.3,3.76598]
[1727174774102,0.8238,2655.4,2655.0,3.7664]
[1727174774407,0.8238,2655.3,2654.9,3.76661]
[1727174774559,0.8238,2655.3,2655.0,3.76642]
[1727174774965,0.8238,2655.3,2654.9,3.76661]
[1727174775169,4.58987,2655.3,2654.9,3.76661]
[1727174775397,0.8238,2655.3,2654.9,3.76653]
[1727174777082,0.8238,2655.3,2654.7,4.54589]
[1727174777288,3.76626,2655.2,2654.7,3.76679]
[1727174777460,0.8238,2655.1,2654.7,3.76679]
[1727174779796,0.8238,2655.1,2654.7,7.53362]
[1727174780006,0.60263957,2655.3,2654.7,7.53362]
[1727174780007,0.8238,2655.3,2654.9,3.76658]
[1727174780462,0.8238,2655.3,2655.1,3.7663]
[1727174781307,0.8238,2655.3,2655.0,3.76647]
[1727174782516,0.8238,2655.6,2655.1,3.76632]
[1727174782726,0.8238,2655.6,2655.3,3.76603]
[1727174783406,0.8238,2655.6,2655.1,3.76632]
[1727174783714,0.8238,2655.6,2655.1,7.53251]
[1727174784012,0.8238,2655.6,2655.2,3.76618]
[1727174784216,4.58943,2655.6,2655.2,3.76618]
[1727174785280,9.33431357,2655.6,2655.1,3.76633]
[1727174785486,0.8238,2655.5,2655.1,3.76633]
[1727174790720,0.8011,2655.4,2654.9,3.76652]
[1727174790926,4.56704,2655.4,2655.0,3.76647]
[1727174791426,0.8011,2655.4,2655.0,3.76647]
[1727174792127,0.8011,2655.4,2654.9,3.76661]
[1727174792420,0.8011,2655.4,2655.0,3.76646]
[1727174793030,4.56713,2655.4,2654.9,3.76661]
[1727174793331,3.76621,2655.2,2654.8,3.76669]
[1727174793536,0.8011,2655.1,2654.8,3.76669]
[1727174798642,0.8011,2655.1,2654.9,3.76653]
[1727174798810,0.8011,2655.3,2654.9,3.76653]
[1727174800087,0.8011,2655.3,2654.8,3.76669]
[1727174800241,0.8011,2655.3,2655.0,3.76645]
[1727174800741,3.76572,2655.6,2655.0,3.76645]
[1727174800742,0.8011,2655.5,2655.0,3.76644]
[1727174800919,0.8011,2655.5,2655.2,3.7661]
[1727174803962,0.8011,2655.5,2655.0,3.76639]
[1727174804257,0.8011,2655.5,2655.1,3.76624]
[1727174805668,0.8011,2655.5,2655.0,3.76639]
[1727174805669,4.222514,2655.5,2655.0,3.76639]
[1727174805839,0.7526,2655.4,2655.0,3.76639]
[1727174806440,4.51852,2655.4,2655.0,3.76639]
[1727174806716,1.18000234,2655.1,2655.0,3.76639]
[1727174807134,1.18000234,2655.1,2654.8,7.53337]
[1727174807453,0.79088334,2654.9,2654.8,3.76669]
[1727174807612,1.54348334,2655.0,2654.8,7.53337]
[1727174808016,0.79088334,2654.9,2654.8,7.53337]
[1727174809746,0.79088334,2654.9,2654.8,3.76668]
[1727174810119,0.79088334,2654.9,2654.7,3.76682]
[1727174810953,1.54348334,2655.0,2654.8,3.76676]
[1727174811663,0.79088334,2654.9,2654.8,3.76676]
[1727174811966,1.54348334,2655.0,2654.8,3.76676]
[1727174812828,0.79088334,2654.9,2654.8,3.76676]
[1727174814234,0.79088334,2654.9,2654.5,3.76706]
[1727174814540,0.79085051,2654.8,2654.6,3.76697]
[1727174814755,0.79085051,2654.7,2654.6,3.76697]
[1727174821050,1.18000234,2654.8,2654.6,3.76697]
[1727174821393,1.18000234,2654.7,2654.6,3.76697]
[1727174822192,0.79100803,2654.7,2654.6,3.76697]
[1727174822389,0.79096813,2654.7,2654.6,3.76697]
[1727174822601,1.18000234,2654.8,2654.6,3.76697]
[1727174822779,1.18000234,2654.8,2654.4,0.8319]
[1727174823087,0.79098081,2654.5,2654.4,3.76732]
[1727174823279,0.79101551,2654.5,2654.4,3.76732]
[1727174823592,0.79104005,2654.5,2654.2,3.8057662]
[1727174823787,0.79090815,2654.4,2654.2,0.0382762]
[1727174825277,0.79090815,2654.3,2654.2,0.0382762]
[1727174825596,0.79090815,2654.4,2654.2,0.0382762]
[1727174827292,1.60270815,2654.3,2654.2,0.0382762]
[1727174827467,1.6020225,2654.3,2654.2,0.0382762]
[1727174827657,0.8118,2654.3,2654.2,0.0382762]
[1727174827861,1.99180234,2654.3,2654.2,0.0382762]
[1727174829092,5.75927234,2654.3,2654.2,0.0382762]
[1727174829290,6.96280094,2654.3,2654.2,0.0382762]
[1727174829495,3.19533094,2654.3,2654.2,0.0382762]
[1727174830697,1.60143375,2654.3,2654.2,0.0382762]
[1727174831386,0.78963375,2654.5,2654.3,3.76747]
[1727174831788,1.60143375,2654.6,2654.3,7.53485]
[1727174832093,0.78963375,2654.5,2654.3,7.53485]
[1727174832453,1.60143375,2654.6,2654.3,3.76738]
[1727174832658,0.78963375,2654.5,2654.3,3.76738]
[1727174833401,0.78963375,2654.5,2654.3,7.53477]
[1727174833704,0.78963375,2654.5,2654.3,3.76738]
[1727174833886,0.78963375,2654.5,2654.4,3.76732]
[1727174834084,1.60143375,2654.6,2654.3,3.76737]
[1727174834286,1.60143375,2654.6,2654.4,3.76724]
[1727174835504,0.78963375,2654.5,2654.4,3.76724]
[1727174837205,1.60143375,2654.6,2654.4,3.76724]
[1727174837406,0.78963375,2654.5,2654.4,3.76724]
[1727174838106,0.78963375,2654.6,2654.5,3.76718]
[1727174838466,0.78963375,2654.6,2654.4,3.76724]
[1727174839386,0.78963375,2654.6,2654.5,3.76718]
[1727174839714,0.78963375,2654.6,2654.4,3.76724]
[1727174840611,0.78963375,2654.6,2654.5,3.76718]
[1727174840784,0.78963375,2654.7,2654.6,3.76704]
[1727174840984,1.18000234,2654.9,2654.6,3.76704]
[1727174840985,0.78963375,2654.8,2654.6,3.76704]
[1727174841184,0.78963375,2654.8,2654.5,4.59206]
[1727174841386,0.78963375,2654.7,2654.5,3.76716]
[1727174842112,0.78963375,2654.7,2654.5,7.53428]
[1727174842805,0.78963375,2654.7,2654.6,3.76704]
[1727174843007,0.78963375,2654.7,2654.4,3.76725]
[1727174843207,0.78963375,2654.7,2654.3,3.76737]
[1727174843208,1.60143375,2654.6,2654.3,3.76737]
[1727174843911,0.78963375,2654.5,2654.2,0.0382762]
[1727174844406,5.36876375,2654.4,2654.2,0.0382762]
[1727174844610,1.44451036,2654.3,2654.2,0.0382762]
[1727174845409,0.8118,2654.4,2654.2,3.8058862]
[1727174845410,1.60143375,2654.4,2654.2,3.8058862]
[1727174846191,1.60143375,2654.4,2654.2,0.0382762]
[1727174846576,1.60143375,2654.4,2654.2,3.8058562]
[1727174847935,0.78963375,2654.4,2654.2,3.8058562]
[1727174848289,0.78963375,2654.5,2654.3,3.76747]
[1727174848476,0.78963375,2654.5,2654.4,3.76732]
[1727174848678,1.60143375,2654.6,2654.4,3.76732]
[1727174849186,0.78963375,2654.5,2654.4,3.76732]
[1727174849589,0.78963375,2654.5,2654.4,3.67963323]
[1727174852500,0.78963375,2654.5,2654.3,3.76744]
[1727174852704,1.225111,2654.5,2654.3,3.76744]
[1727174854110,0.78963375,2654.4,2654.3,3.76744]
[1727174855819,0.78963375,2654.6,2654.4,4.54862]
[1727174856120,0.78963375,2654.6,2654.5,3.76718]
[1727174856681,0.78963375,2654.6,2654.4,4.54862]
[1727174856996,0.78963375,2654.6,2654.5,3.76718]
[1727174858408,1.18000234,2654.7,2654.6,3.76704]
[1727174861581,1.18000234,2654.8,2654.6,3.76704]
[1727174863223,1.18000234,2654.7,2654.6,3.76704]
[1727174867084,1.18000234,2654.7,2654.5,3.76718]
[1727174867325,0.79101125,2654.6,2654.5,3.76718]
[1727174869631,1.18000234,2654.7,2654.5,3.76718]
[1727174869796,1.18000234,2654.7,2654.6,3.76704]
[1727174870711,0.038,2655.0,2654.9,3.76662]
[1727174875331,0.038,2655.0,2654.8,3.76676]
[1727174875533,0.038,2655.0,2654.8,7.53345]
[1727174875832,0.038,2655.0,2654.8,3.76669]
[1727174876037,0.038,2655.0,2654.8,7.53337]
[1727174876334,0.038,2655.0,2654.8,3.76668]
[1727174876535,0.038,2655.0,2654.9,3.76662]
[1727174880442,0.038,2655.0,2654.6,0.7983]
[1727174880673,0.7608,2654.9,2654.6,3.76692]
[1727174882946,0.7608,2654.9,2654.7,3.76687]
[1727174883147,0.038,2655.0,2654.9,3.76662]
[1727174883444,0.038,2655.0,2654.9,4.61514216]
[1727174884338,0.038,2655.0,2654.9,14.92324316]
[1727174884549,0.038,2655.0,2654.9,11.885835]
[1727174885249,0.038,2655.0,2654.9,9.795153]
[1727174885414,0.038,2655.0,2654.9,10.19060064]
[1727174886350,0.038,2655.0,2654.9,9.795153]
[1727174889949,0.038,2655.0,2654.9,12.795153]
[1727174890512,0.038,2655.0,2654.9,13.74060064]
[1727174893143,0.038,2655.0,2654.9,13.19060064]
[1727174894642,0.038,2655.0,2654.9,7.93526764]
[1727174894844,0.038,2655.0,2654.9,39.53025964]
[1727174895645,0.038,2655.0,2654.9,40.31991564]
[1727174898067,0.7608,2656.0,2655.9,3.7652]
[1727174901873,0.7608,2656.0,2655.9,3.6652]
[1727174903181,0.7608,2656.0,2655.8,3.76526]
[1727174903478,0.7608,2656.0,2655.8,3.76529]
[1727174904841,0.7608,2656.0,2655.3,0.7732]
[1727174905065,0.7608,2655.9,2655.6,3.76552]
[1727174906866,0.7608,2655.9,2655.7,3.76548]
[1727174909413,3.76521,2655.9,2655.5,3.76563]
[1727174909570,0.7608,2655.7,2655.3,3.76596]
[1727174909765,0.7608,2655.7,2655.4,3.76584]
[1727174910311,0.7608,2655.7,2655.5,3.76575]
[1727174910675,0.7608,2655.7,2655.3,3.76597]
[1727174910880,0.7608,2655.7,2655.4,3.76581]
[1727174911401,0.7608,2655.7,2655.5,3.76576]
[1727174913399,1.55045627,2655.7,2655.5,3.76576]
[1727174914229,1.55045627,2655.7,2655.4,3.76589]
[1727174915735,0.78965627,2655.6,2655.2,7.5322]
[1727174916500,0.78965627,2655.5,2655.2,7.5322]
[1727174916729,1.55814917,2655.5,2655.2,3.7661]
[1727174916932,0.78965627,2655.6,2655.4,3.76591]
[1727174917341,1.55045627,2655.7,2655.1,3.0]
[1727174917636,1.51245627,2655.7,2655.5,3.7657]
[1727174918435,0.7228,2655.7,2655.5,3.76569]
[1727174918639,0.78965627,2655.8,2655.6,3.76562]
[1727174918808,0.78965627,2656.0,2655.7,3.7654]
[1727174919920,0.78965627,2655.9,2655.7,3.7654]
[1727174921916,1.9665844,2656.0,2655.6,3.76562]
[1727174921917,0.78965627,2655.8,2655.6,3.76562]
[1727174922117,0.7821,2655.7,2655.5,3.76572]
[1727174922434,1.57175627,2655.7,2655.5,3.76572]
[1727174924436,0.78965627,2655.6,2655.5,3.76572]
[1727174924802,1.57175627,2655.7,2655.5,3.76572]
[1727174925417,0.78965627,2655.6,2655.4,3.76582]
[1727174925623,0.78965627,2655.6,2655.5,3.76576]
[1727174926195,0.78965627,2655.7,2655.6,3.76562]
[1727174926730,0.78965627,2655.8,2655.7,3.76548]
[1727174926918,0.78965627,2655.9,2655.8,3.76534]
[1727174927527,1.1844844,2656.0,2655.7,3.76548]
[1727174927731,0.7900753,2655.8,2655.7,3.76537]
[1727174929166,1.1844844,2655.8,2655.7,3.76537]
[1727174929464,1.1844844,2655.8,2655.7,3.54665573]
[1727174931746,1.1844844,2655.8,2655.6,3.76562]
[1727174932240,0.79083615,2655.7,2655.6,3.76562]
[1727174932439,1.1844844,2655.7,2655.6,3.76562]
[1727174933166,0.79087578,2655.7,2655.6,3.76562]
[1727174933765,0.79087578,2655.7,2655.6,4.54112]
[1727174933972,0.79087578,2655.8,2655.6,4.54112]
[1727174934137,1.1844844,2655.9,2655.6,4.54112]
[1727174934138,1.1844844,2655.9,2655.7,3.76548]
[1727174934530,1.1844844,2655.9,2655.8,3.76534]
[1727174934960,4.57404,2656.3,2655.8,3.76534]
[1727174935270,1.86790289,2656.3,2655.9,3.76512]
[1727174936558,1.86790289,2656.3,2656.1,3.76489]
[1727174936559,0.8094,2656.3,2656.1,3.76489]
[1727174941277,0.8094,2656.3,2655.8,3.76523]
[1727174941583,0.8094,2656.3,2655.6,0.7755]
[1727174941584,1.03400657,2656.3,2656.1,3.7649]
[1727174941882,0.8094,2656.3,2656.1,3.7649]
[1727174942745,0.8094,2656.3,2656.2,3.76477]
[1727174942963,0.8117,2656.6,2656.2,3.76477]
[1727174943169,0.457578,2656.5,2656.2,3.76477]
[1727174944400,0.8117,2656.6,2656.4,3.76443]
[1727174944602,8.1017,2656.8,2656.5,3.76428]
[1727174944812,0.8117,2656.8,2656.6,3.76414]
[1727174945167,1.26924,2656.8,2656.6,3.76414]
[1727174945713,1.26924,2656.8,2656.5,3.76428]
[1727174946406,1.18500742,2656.6,2656.5,3.76428]
[1727174947619,0.78958764,2656.6,2656.5,3.76428]
[1727174948912,0.78958764,2656.6,2656.4,3.76445]
[1727174949110,1.18500742,2656.6,2656.4,3.76442]
[1727174949320,0.78941068,2656.5,2656.4,3.76442]
[1727174949620,0.78941068,2656.6,2656.5,3.76435]
[1727174951339,0.78941068,2656.7,2656.5,3.76435]
[1727174952939,0.78941068,2656.7,2656.4,3.76442]
[1727174953236,1.22602348,2656.7,2656.4,3.76442]
[1727174953435,1.22602348,2656.7,2656.5,3.76434]
[1727174954254,0.78941068,2656.7,2656.5,3.76434]
[1727174956052,1.18500742,2656.8,2656.5,3.76421]
[1727174956053,0.78941068,2656.8,2656.5,3.76421]
[1727174956256,0.78941068,2656.7,2656.5,3.76421]
[1727174956770,0.78941068,2656.8,2656.5,3.76421]
[1727174956970,0.78941068,2656.7,2656.5,3.76421]
[1727174957171,0.78941068,2656.8,2656.5,3.76421]
[1727174957383,1.74753354,2656.8,2656.5,3.76421]
[1727174958516,0.78941068,2656.7,2656.4,7.52882]
[1727174959773,0.78941068,2656.7,2656.2,4.55675]
[1727174960098,0.78941068,2656.5,2656.1,3.76489]
[1727174960459,0.78941068,2656.4,2656.1,3.76489]
[1727174962869,0.78941068,2656.4,2656.2,3.76475]
[1727174963282,1.69650139,2656.5,2656.1,4.55691]
[1727174963475,0.78941068,2656.4,2656.1,4.55691]
[1727174963681,1.69650139,2656.5,2656.1,4.55691]
[1727174963988,0.78941068,2656.4,2656.1,4.55691]
[1727174965786,0.78941068,2656.4,2656.2,3.76466]
[1727174966304,1.69650139,2656.5,2656.2,3.76466]
[1727174966489,0.78941068,2656.4,2656.2,3.76466]
[1727174967006,1.69650139,2656.5,2656.2,3.76466]
[1727174967188,0.78941068,2656.5,2656.2,3.76466]
[1727174967389,0.78941068,2656.5,2656.3,3.76461]
[1727174967593,0.78941068,2656.5,2656.4,0.7921]
[1727174967760,0.78941068,2656.6,2656.5,3.76435]
[1727174970730,0.78941068,2656.6,2656.4,0.7921]
[1727174971040,0.78941068,2656.6,2656.4,3.76442]
[1727174971723,10.78941068,2656.6,2656.4,3.76442]
[1727174972291,0.78941068,2656.5,2656.4,3.76442]
[1727174977829,11.18500742,2656.6,2656.4,3.76442]
[1727174978130,1.18500742,2656.5,2656.4,3.76442]
[1727174978425,11.18500742,2656.6,2656.4,3.76442]
[1727174978631,1.18500742,2656.5,2656.4,3.76442]
[1727174978839,11.18500742,2656.6,2656.4,3.76442]
[1727174979125,1.18500742,2656.5,2656.4,3.76442]
[1727174981732,11.58000989,2656.6,2656.4,3.76442]
[1727174981930,1.58000989,2656.5,2656.4,3.76442]
[1727174982141,10.0,2656.6,2656.4,3.76442]
[1727174982142,11.58000989,2656.6,2656.4,3.76442]
[1727174982430,1.58000989,2656.5,2656.4,3.76442]
[1727174982948,11.58000989,2656.6,2656.4,3.76442]
[1727174983539,1.18608807,2656.5,2656.4,3.76442]
[1727174984495,11.58000989,2656.6,2656.4,3.76442]
[1727174985141,1.18610741,2656.5,2656.4,3.76442]
[1727174985825,11.58000989,2656.6,2656.4,3.76442]
[1727174986031,1.18622594,2656.5,2656.4,3.76442]
[1727174986195,11.58000989,2656.6,2656.3,7.52917]
[1727174986390,1.18623214,2656.4,2656.3,7.52917]
[1727174987642,1.18623214,2656.4,2656.3,3.76456]
[1727174988645,1.58000989,2656.5,2656.3,3.76456]
[1727174988855,1.18661828,2656.4,2656.3,3.76456]
[1727174991843,1.18661828,2656.4,2656.3,4.13791438]
[1727174992244,1.18661828,2656.4,2656.3,4.1379071]
[1727174992948,11.58000989,2656.6,2656.4,3.76449]
[1727174993173,11.58000989,2656.6,2656.5,3.76435]
[1727174996969,10.0,2656.6,2656.5,3.76435]
[1727174997334,11.58235654,2656.6,2656.5,3.76435]
[1727174998273,11.58235847,2656.6,2656.5,3.76435]
[1727175000035,11.97794442,2656.6,2656.5,3.76435]
[1727175000239,11.97794442,2656.6,2656.3,3.7646]
[1727175000481,11.97794442,2656.6,2655.2,0.06555122]
[1727175000482,0.7893,2656.2,2655.5,2.79377037]
[1727175000714,0.7893,2656.2,2655.5,3.76565]
[1727175000715,0.79140368,2655.6,2655.5,3.76565]
[1727175001002,1.18702996,2655.6,2655.5,3.76565]
[1727175001170,0.79136043,2655.7,2655.6,3.76562]
[1727175001375,0.79136043,2655.8,2655.7,3.76548]
[1727175001559,0.79114223,2655.8,2655.7,3.76548]
[1727175005578,0.79114223,2655.9,2655.8,3.76534]
[1727175008108,1.18702996,2655.9,2655.7,3.76548]
[1727175008416,1.18702996,2655.8,2655.6,0.37345887]
[1727175008560,0.79028713,2655.7,2655.6,0.37345887]
[1727175008760,0.7903029,2655.7,2655.6,0.37345887]
[1727175009067,0.7903029,2655.7,2655.6,3.76562]
[1727175009492,0.79028345,2655.7,2655.6,3.76562]
[1727175012205,0.79028345,2655.8,2655.6,3.76562]
[1727175013183,0.79028345,2655.7,2655.6,3.76562]
[1727175013387,0.79028345,2655.8,2655.6,3.76562]
[1727175015231,0.79028345,2655.8,2655.4,0.8262]